[Event "Berliner Meisterschaft 2023"]
[Site "Berlin"]
[Date "2023.04.16"]
[Round "9.5"]
[White "Georg, Tscheuschner"]
[Black "Glantz, Robert"]
[Result "1/2-1/2"]
[TimeControl "90 minutes / 40 moves + 30 minutes + 30 seconds"]
[BlackTitle "FM"]
[WhiteFideId "12935549"]
[BlackFideId "24629596"]
[WhiteElo "2185"]
[BlackElo "2360"]

1. Nf3 {[%clk 01:30:56]} {[%emt 00:00:03]} Nf6 {[%clk 01:30:26]} {[%emt
00:00:34]} 2. c4 {[%clk 01:31:20]} {[%emt 00:00:05]} b6 {[%clk 01:29:43]}
{[%emt 00:01:13]} 3. Nc3 {[%clk 01:31:11]} {[%emt 00:00:40]} Bb7 {[%clk
01:29:57]} {[%emt 00:00:16]} 4. d4 {[%clk 01:31:16]} {[%emt 00:00:24]} e6
{[%clk 01:28:53]} {[%emt 00:01:33]} 5. a3 {[%clk 01:31:25]} {[%emt 00:00:22]}
g6 {[%clk 01:26:03]} {[%emt 00:03:19]} 6. Qc2 {[%clk 01:31:14]} {[%emt
00:00:41]} Bg7 {[%clk 01:24:40]} {[%emt 00:01:53]} 7. e4 {[%clk 01:31:38]}
{[%emt 00:00:07]} d6 {[%clk 01:20:58]} {[%emt 00:04:12]} 8. Bd3 {[%clk
01:23:05]} {[%emt 00:09:03]} Nbd7 {[%clk 01:11:56]} {[%emt 00:09:32]} 9. O-O
{[%clk 01:22:31]} {[%emt 00:01:03]} O-O {[%clk 01:09:06]} {[%emt 00:03:20]} 10.
b4 {[%clk 01:18:00]} {[%emt 00:05:03]} Nh5 {[%clk 01:00:59]} {[%emt 00:08:36]}
11. Re1 {[%clk 01:10:45]} {[%emt 00:07:44]} e5 {[%clk 00:46:34]} {[%emt
00:14:56]} 12. Be3 {[%clk 01:08:42]} {[%emt 00:02:33]} exd4 {[%clk 00:33:31]}
{[%emt 00:13:33]} 13. Nxd4 {[%clk 01:07:31]} {[%emt 00:01:41]} Ne5 {[%clk
00:30:22]} {[%emt 00:03:39]} 14. Be2 {[%clk 01:02:07]} {[%emt 00:05:54]} c5
{[%clk 00:30:10]} {[%emt 00:00:41]} 15. bxc5 {[%clk 00:55:33]} {[%emt
00:07:05]} bxc5 {[%clk 00:30:21]} {[%emt 00:00:18]} 16. Nf3 {[%clk 00:55:37]}
{[%emt 00:00:26]} Ng4 {[%clk 00:27:37]} {[%emt 00:03:14]} 17. Bg5 {[%clk
00:53:38]} {[%emt 00:02:29]} f6 {[%clk 00:26:41]} {[%emt 00:01:26]} 18. Bd2
{[%clk 00:53:25]} {[%emt 00:00:43]} f5 {[%clk 00:24:52]} {[%emt 00:02:19]} 19.
Rab1 {[%clk 00:43:20]} {[%emt 00:10:36]} Bc6 {[%clk 00:20:09]} {[%emt
00:05:12]} 20. Bg5 {[%clk 00:35:23]} {[%emt 00:08:27]} Qd7 {[%clk 00:18:57]}
{[%emt 00:01:42]} 21. exf5 {[%clk 00:23:56]} {[%emt 00:11:57]} Rxf5 {[%clk
00:14:01]} {[%emt 00:05:26]} 22. Bd3 {[%clk 00:22:35]} {[%emt 00:01:52]} Rxf3
{[%clk 00:13:10]} {[%emt 00:01:21]} 23. gxf3 {[%clk 00:22:55]} {[%emt
00:00:10]} Ne5 {[%clk 00:12:14]} {[%emt 00:01:25]} 24. Rxe5 {[%clk 00:09:27]}
{[%emt 00:13:58]} Bxe5 {[%clk 00:12:43]} {[%emt 00:00:01]} 25. Be4 {[%clk
00:09:46]} {[%emt 00:00:11]} Qh3 {[%clk 00:08:58]} {[%emt 00:04:14]} 26. f4
{[%clk 00:09:58]} {[%emt 00:00:19]} Bxe4 {[%clk 00:01:01]} {[%emt 00:08:27]} 27.
Qxe4 {[%clk 00:10:06]} {[%emt 00:00:22]} Re8 {[%clk 00:00:41]} {[%emt
00:00:50]} 28. Nd5 {[%clk 00:08:08]} {[%emt 00:02:28]} Qg4+ {[%clk 00:00:33]}
{[%emt 00:00:37]} 29. Kh1 {[%clk 00:08:37]} {[%emt 00:00:01]} Rf8 {[%clk
00:00:31]} {[%emt 00:00:33]} 30. Rg1 {[%clk 00:07:42]} {[%emt 00:01:25]} Qh3
{[%clk 00:01:00]} {[%emt 00:00:01]} 31. Qe3 {[%clk 00:01:28]} {[%emt 00:06:43]}
Qxe3 {[%clk 00:00:38]} {[%emt 00:00:52]} 32. fxe3 {[%clk 00:01:57]} Bf6 {[%clk
00:00:43]} {[%emt 00:00:24]} 33. Rb1 {[%clk 00:00:42]} {[%emt 00:01:45]} Kg7
{[%clk 00:00:33]} {[%emt 00:00:40]} 34. Rb7+ {[%clk 00:00:54]} {[%emt
00:00:19]} Kg8 {[%clk 00:00:41]} {[%emt 00:00:23]} 35. Rxa7 {[%clk 00:01:05]}
{[%emt 00:00:19]} Bxg5 {[%clk 00:00:44]} {[%emt 00:00:26]} 36. fxg5 {[%clk
00:01:34]} {[%emt 00:00:02]} Rf1+ {[%clk 00:00:39]} {[%emt 00:00:35]} 37. Kg2
{[%clk 00:02:01]} {[%emt 00:00:03]} Rc1 {[%clk 00:00:52]} {[%emt 00:00:16]} 38.
a4 {[%clk 00:01:42]} {[%emt 00:00:50]} Rxc4 {[%clk 00:01:04]} {[%emt 00:00:18]}
39. a5 {[%clk 00:02:04]} {[%emt 00:00:08]} Rg4+ {[%clk 00:00:36]} {[%emt
00:00:58]} 40. Kf3 {[%clk 00:02:23]} {[%emt 00:00:10]} Rxg5 {[%clk 00:00:54]}
{[%emt 00:00:12]} 41. Ne7+ {[%clk 00:24:05]} {[%emt 00:08:48]} Kf8 {[%clk
00:24:37]} {[%emt 00:06:46]} 42. a6 {[%clk 00:22:18]} {[%emt 00:02:18]} c4
{[%clk 00:23:36]} {[%emt 00:01:31]} 43. Nc6 {[%clk 00:14:05]} {[%emt 00:08:43]}
Rg1 {[%clk 00:12:01]} {[%emt 00:12:04]} 44. Rc7 {[%clk 00:13:46]} {[%emt
00:00:49]} Ke8 {[%clk 00:10:40]} {[%emt 00:01:50]} 45. a7 {[%clk 00:13:15]}
{[%emt 00:01:02]} Ra1 {[%clk 00:11:04]} {[%emt 00:00:06]} 46. Re7+ {[%clk
00:13:37]} {[%emt 00:00:09]} Kf8 {[%clk 00:11:32]} {[%emt 00:00:02]} 47. Rd7
{[%clk 00:13:52]} {[%emt 00:00:15]} c3 {[%clk 00:09:05]} {[%emt 00:02:58]} 48.
Rd8+ {[%clk 00:14:11]} {[%emt 00:00:11]} Kg7 {[%clk 00:09:29]} {[%emt
00:00:05]} 49. a8=Q {[%clk 00:14:36]} {[%emt 00:00:06]} Rf1+ {[%clk 00:09:51]}
{[%emt 00:00:07]} 50. Ke2 {[%clk 00:07:27]} {[%emt 00:07:39]} c2 {[%clk
00:10:09]} {[%emt 00:00:11]} 51. Rd7+ {[%clk 00:05:09]} {[%emt 00:02:49]} Kh6
{[%clk 00:10:29]} {[%emt 00:00:09]} 52. Ne7 {[%clk 00:04:00]} {[%emt 00:01:40]}
Re1+ {[%clk 00:03:13]} {[%emt 00:07:46]} 53. Kxe1 {[%clk 00:03:09]} {[%emt
00:01:21]} c1=Q+ {[%clk 00:03:36]} {[%emt 00:00:07]} 54. Ke2 {[%clk 00:02:45]}
{[%emt 00:00:54]} Qc2+ {[%clk 00:03:33]} {[%emt 00:00:32]} 55. Ke1 {[%clk
00:03:12]} {[%emt 00:00:04]} Qc1+ {[%clk 00:03:49]} {[%emt 00:00:14]} 56. Ke2
{[%clk 00:03:39]} {[%emt 00:00:04]} Qc2+ {[%clk 00:04:08]} {[%emt 00:00:11]}
1/2-1/2

[Event "Berliner Meisterschaft 2023"]
[Site "Berlin"]
[Date "2023.04.16"]
[Round "9.6"]
[White "Richter, Michael"]
[Black "Noeldner, Julian"]
[Result "1/2-1/2"]
[TimeControl "90 minutes / 40 moves + 30 minutes + 30 seconds"]
[WhiteTitle "GM"]
[WhiteFideId "4618920"]
[BlackFideId "16218744"]
[WhiteElo "2465"]
[BlackElo "2121"]

1. d4 {[%clk 01:30:50]} {[%emt 00:00:10]} Nf6 {[%clk 01:30:43]} {[%emt
00:00:18]} 2. c4 {[%clk 01:30:44]} {[%emt 00:00:35]} g6 {[%clk 01:30:57]}
{[%emt 00:00:15]} 3. Nc3 {[%clk 01:31:04]} {[%emt 00:00:11]} d5 {[%clk
01:31:20]} {[%emt 00:00:07]} 4. cxd5 {[%clk 01:28:54]} {[%emt 00:02:40]} Nxd5
{[%clk 01:31:43]} {[%emt 00:00:07]} 5. Bd2 {[%clk 01:29:07]} {[%emt 00:00:17]}
Bg7 {[%clk 01:30:49]} {[%emt 00:01:24]} 6. e4 {[%clk 01:29:29]} {[%emt
00:00:08]} Nxc3 {[%clk 01:31:13]} {[%emt 00:00:06]} 7. Bxc3 {[%clk 01:29:52]}
{[%emt 00:00:07]} O-O {[%clk 01:31:34]} {[%emt 00:00:09]} 8. Be2 {[%clk
01:25:33]} {[%emt 00:04:49]} c5 {[%clk 01:22:44]} {[%emt 00:09:20]} 9. d5
{[%clk 01:25:52]} {[%emt 00:00:11]} Bxc3+ {[%clk 01:19:01]} {[%emt 00:04:14]}
10. bxc3 {[%clk 01:26:15]} {[%emt 00:00:06]} Qd6 {[%clk 01:19:18]} {[%emt
00:00:12]} 11. Nf3 {[%clk 01:23:00]} {[%emt 00:03:46]} Bg4 {[%clk 01:18:59]}
{[%emt 00:00:48]} 12. Nd2 {[%clk 01:11:59]} {[%emt 00:11:31]} Bxe2 {[%clk
01:10:00]} {[%emt 00:09:29]} 13. Qxe2 {[%clk 01:12:22]} {[%emt 00:00:06]} e6
{[%clk 01:10:11]} {[%emt 00:00:20]} 14. Nc4 {[%clk 01:09:22]} {[%emt 00:03:30]}
Qa6 {[%clk 01:09:52]} {[%emt 00:00:49]} 15. Ne3 {[%clk 01:09:20]} {[%emt
00:00:32]} exd5 {[%clk 00:55:17]} {[%emt 00:15:06]} 16. exd5 {[%clk 01:09:07]}
{[%emt 00:00:42]} Qxe2+ {[%clk 00:49:20]} {[%emt 00:06:27]} 17. Kxe2 {[%clk
01:09:30]} {[%emt 00:00:07]} Nd7 {[%clk 00:49:47]} {[%emt 00:00:03]} 18. Rab1
{[%clk 00:53:02]} {[%emt 00:16:59]} Rab8 {[%clk 00:45:52]} {[%emt 00:04:26]} 19.
a4 {[%clk 00:45:24]} {[%emt 00:08:08]} Nf6 {[%clk 00:37:51]} {[%emt 00:08:30]}
20. Rb2 {[%clk 00:40:19]} {[%emt 00:05:35]} Rfd8 {[%clk 00:31:38]} {[%emt
00:06:43]} 21. Rd1 {[%clk 00:33:21]} {[%emt 00:07:28]} Ne4 {[%clk 00:31:31]}
{[%emt 00:00:37]} 22. Kd3 {[%clk 00:32:15]} {[%emt 00:01:35]} Nd6 {[%clk
00:29:17]} {[%emt 00:02:44]} 23. Nc4 {[%clk 00:29:32]} {[%emt 00:03:12]} b5
{[%clk 00:20:05]} {[%emt 00:09:43]} 24. axb5 {[%clk 00:29:23]} {[%emt
00:00:40]} Rxb5 {[%clk 00:20:02]} {[%emt 00:00:32]} 25. Rxb5 {[%clk 00:28:34]}
{[%emt 00:01:20]} Nxb5 {[%clk 00:20:26]} {[%emt 00:00:06]} 26. Ne3 {[%clk
00:27:18]} {[%emt 00:01:46]} f5 {[%clk 00:15:08]} {[%emt 00:05:48]} 27. g3
{[%clk 00:25:34]} {[%emt 00:02:13]} a6 {[%clk 00:10:53]} {[%emt 00:04:45]} 28.
c4 {[%clk 00:18:25]} {[%emt 00:07:40]} Nd4 {[%clk 00:11:16]} {[%emt 00:00:07]}
29. Rb1 {[%clk 00:12:10]} {[%emt 00:06:45]} a5 {[%clk 00:06:20]} {[%emt
00:05:24]} 30. Nc2 {[%clk 00:09:53]} {[%emt 00:02:49]} Nf3 {[%clk 00:04:56]}
{[%emt 00:01:54]} 31. h4 {[%clk 00:04:37]} {[%emt 00:05:46]} Ne5+ {[%clk
00:04:42]} {[%emt 00:00:45]} 32. Kc3 {[%clk 00:05:02]} {[%emt 00:00:05]} Ng4
{[%clk 00:05:06]} {[%emt 00:00:05]} 33. f3 {[%clk 00:05:23]} {[%emt 00:00:09]}
Ne5 {[%clk 00:04:55]} {[%emt 00:00:41]} 34. Ne1 {[%clk 00:05:47]} {[%emt
00:00:06]} a4 {[%clk 00:03:48]} {[%emt 00:01:37]} 35. Nd3 {[%clk 00:02:57]}
{[%emt 00:03:19]} Nxd3 {[%clk 00:01:37]} {[%emt 00:02:41]} 36. Kxd3 {[%clk
00:03:22]} {[%emt 00:00:06]} a3 {[%clk 00:02:02]} {[%emt 00:00:05]} 37. Kc2
{[%clk 00:01:05]} {[%emt 00:02:47]} Ra8 {[%clk 00:00:43]} {[%emt 00:01:49]} 38.
Kb3 {[%clk 00:00:59]} {[%emt 00:00:36]} Rb8+ {[%clk 00:00:45]} {[%emt
00:00:29]} 39. Ka2 {[%clk 00:01:22]} {[%emt 00:00:06]} Rb4 {[%clk 00:00:40]}
{[%emt 00:00:36]} 40. Rc1 {[%clk 00:01:03]} {[%emt 00:00:48]} Ra4 {[%clk
00:00:48]} {[%emt 00:00:22]} 41. Kb3 {[%clk 00:12:22]} {[%emt 00:19:11]} Rb4+
{[%clk 00:27:10]} {[%emt 00:04:09]} 42. Kxa3 {[%clk 00:11:22]} {[%emt
00:01:30]} Kf7 {[%clk 00:25:49]} {[%emt 00:01:50]} 43. Rc3 {[%clk 00:10:26]}
{[%emt 00:01:27]} Ke7 {[%clk 00:24:02]} {[%emt 00:02:16]} 44. f4 {[%clk
00:06:58]} {[%emt 00:03:57]} Kd6 {[%clk 00:20:39]} {[%emt 00:03:53]} 45. Rc2
{[%clk 00:06:48]} {[%emt 00:00:40]} Kc7 {[%clk 00:20:12]} {[%emt 00:00:58]} 46.
Rc3 {[%clk 00:04:04]} {[%emt 00:03:14]} Kd6 {[%clk 00:20:24]} {[%emt 00:00:17]}
47. Rc2 {[%clk 00:04:20]} {[%emt 00:00:14]} Kc7 {[%clk 00:20:47]} {[%emt
00:00:07]} 48. Rc3 {[%clk 00:04:45]} {[%emt 00:00:05]} Kd6 {[%clk 00:21:02]}
{[%emt 00:00:15]} 49. Rc2 {[%clk 00:05:09]} {[%emt 00:00:05]} 1/2-1/2

[Event "Berliner Meisterschaft 2023"]
[Site "Berlin"]
[Date "2023.04.16"]
[Round "9.7"]
[White "Eilenberg, Jonas"]
[Black "Poltorak, Sebastian"]
[Result "1/2-1/2"]
[TimeControl "90 minutes / 40 moves + 30 minutes + 30 seconds"]
[BlackTitle "FM"]
[WhiteFideId "16204271"]
[BlackFideId "1199498"]
[WhiteElo "2227"]
[BlackElo "2368"]

1. d4 {[%clk 01:30:57]} {[%emt 00:00:02]} Nf6 {[%clk 01:30:52]} {[%emt
00:00:09]} 2. c4 {[%clk 01:31:21]} {[%emt 00:00:06]} g6 {[%clk 01:31:17]}
{[%emt 00:00:04]} 3. Nc3 {[%clk 01:31:45]} {[%emt 00:00:06]} d5 {[%clk
01:31:42]} {[%emt 00:00:05]} 4. Nf3 {[%clk 01:32:08]} {[%emt 00:00:07]} Bg7
{[%clk 01:32:07]} {[%emt 00:00:05]} 5. Bg5 {[%clk 01:32:32]} {[%emt 00:00:06]}
Ne4 {[%clk 01:32:13]} {[%emt 00:00:24]} 6. Bf4 {[%clk 01:32:55]} {[%emt
00:00:06]} Nxc3 {[%clk 01:32:33]} {[%emt 00:00:10]} 7. bxc3 {[%clk 01:33:19]}
{[%emt 00:00:06]} O-O {[%clk 01:32:28]} {[%emt 00:00:35]} 8. e3 {[%clk
01:33:40]} {[%emt 00:00:09]} c5 {[%clk 01:32:36]} {[%emt 00:00:22]} 9. cxd5
{[%clk 01:34:01]} {[%emt 00:00:09]} cxd4 {[%clk 01:32:59]} {[%emt 00:00:07]} 10.
cxd4 {[%clk 01:34:22]} {[%emt 00:00:09]} Qxd5 {[%clk 01:33:23]} {[%emt
00:00:06]} 11. Be2 {[%clk 01:34:45]} {[%emt 00:00:07]} Qa5+ {[%clk 01:29:42]}
{[%emt 00:04:11]} 12. Qd2 {[%clk 01:34:51]} {[%emt 00:00:24]} Nc6 {[%clk
01:30:04]} {[%emt 00:00:08]} 13. Qxa5 {[%clk 01:35:11]} {[%emt 00:00:11]} Nxa5
{[%clk 01:30:27]} {[%emt 00:00:06]} 14. h4 {[%clk 01:35:34]} {[%emt 00:00:06]}
Be6 {[%clk 01:23:25]} {[%emt 00:07:33]} 15. h5 {[%clk 01:20:56]} {[%emt
00:15:09]} Rfc8 {[%clk 01:21:17]} {[%emt 00:02:37]} 16. h6 {[%clk 01:17:03]}
{[%emt 00:04:22]} Bf8 {[%clk 01:19:13]} {[%emt 00:02:34]} 17. e4 {[%clk
01:06:51]} {[%emt 00:10:43]} f6 {[%clk 01:13:26]} {[%emt 00:06:16]} 18. d5
{[%clk 01:01:39]} {[%emt 00:05:43]} Bd7 {[%clk 01:09:19]} {[%emt 00:04:37]} 19.
Nd4 {[%clk 00:45:58]} {[%emt 00:16:10]} Nc4 {[%clk 01:06:53]} {[%emt 00:02:57]}
20. Rb1 {[%clk 00:44:04]} {[%emt 00:02:24]} b6 {[%clk 01:03:55]} {[%emt
00:03:28]} 21. Bd3 {[%clk 00:28:27]} {[%emt 00:16:06]} Nd6 {[%clk 00:38:29]}
{[%emt 00:25:56]} 22. Kd2 {[%clk 00:25:40]} {[%emt 00:03:18]} Kf7 {[%clk
00:38:19]} {[%emt 00:00:40]} 23. f3 {[%clk 00:21:26]} {[%emt 00:04:44]} e5
{[%clk 00:37:51]} {[%emt 00:00:58]} 24. dxe6+ {[%clk 00:21:39]} {[%emt
00:00:17]} Bxe6 {[%clk 00:38:16]} {[%emt 00:00:05]} 25. Nxe6 {[%clk 00:21:36]}
{[%emt 00:00:33]} Kxe6 {[%clk 00:38:40]} {[%emt 00:00:06]} 26. Rbc1 {[%clk
00:19:31]} {[%emt 00:02:35]} Rc5 {[%clk 00:36:06]} {[%emt 00:03:03]} 27. Rxc5
{[%clk 00:17:20]} {[%emt 00:02:41]} bxc5 {[%clk 00:36:22]} {[%emt 00:00:14]} 28.
Re1 {[%clk 00:16:11]} {[%emt 00:01:38]} c4 {[%clk 00:27:29]} {[%emt 00:09:24]}
29. Bf1 {[%clk 00:15:50]} {[%emt 00:00:51]} Rd8 {[%clk 00:25:31]} {[%emt
00:02:27]} 30. Kc2 {[%clk 00:15:03]} {[%emt 00:01:18]} g5 {[%clk 00:25:49]}
{[%emt 00:00:12]} 1/2-1/2

[Event "Berliner Meisterschaft 2023"]
[Site "Berlin"]
[Date "2023.04.16"]
[Round "9.8"]
[White "Haug, Havard"]
[Black "Foerster, Jonas"]
[Result "1/2-1/2"]
[TimeControl "90 minutes / 40 moves + 30 minutes + 30 seconds"]
[WhiteFideId "1547887"]
[BlackFideId "4640098"]
[WhiteElo "2090"]
[BlackElo "2295"]

1. e4 {[%clk 01:30:58]} e6 {[%clk 01:28:41]} {[%emt 00:02:19]} 2. d3 {[%clk
01:31:07]} {[%emt 00:00:21]} c5 {[%clk 01:27:48]} {[%emt 00:01:23]} 3. Nf3
{[%clk 01:31:21]} {[%emt 00:00:16]} Nc6 {[%clk 01:27:29]} {[%emt 00:00:50]} 4.
g3 {[%clk 01:31:26]} {[%emt 00:00:24]} g6 {[%clk 01:24:41]} {[%emt 00:03:18]} 5.
Bg5 {[%clk 01:29:23]} {[%emt 00:02:32]} Qb6 {[%clk 01:16:26]} {[%emt 00:08:46]}
6. Nbd2 {[%clk 01:29:34]} {[%emt 00:00:19]} d5 {[%clk 01:04:26]} {[%emt
00:12:30]} 7. exd5 {[%clk 01:29:10]} {[%emt 00:00:55]} exd5 {[%clk 01:04:55]}
{[%emt 00:00:02]} 8. Qe2+ {[%clk 01:28:49]} {[%emt 00:00:51]} Be6 {[%clk
01:04:39]} {[%emt 00:00:45]} 9. Bh3 {[%clk 01:29:07]} {[%emt 00:00:12]} Nb4
{[%clk 00:57:40]} {[%emt 00:07:30]} 10. O-O {[%clk 01:27:54]} {[%emt 00:01:42]}
Ne7 {[%clk 00:49:01]} {[%emt 00:09:09]} 11. Bxe6 {[%clk 01:25:41]} {[%emt
00:02:43]} Qxe6 {[%clk 00:48:42]} {[%emt 00:00:49]} 12. Qd1 {[%clk 01:25:22]}
{[%emt 00:00:48]} f6 {[%clk 00:42:24]} {[%emt 00:06:49]} 13. Re1 {[%clk
01:20:50]} {[%emt 00:05:02]} Qf5 {[%clk 00:41:40]} {[%emt 00:01:15]} 14. Bf4
{[%emt 00:00:17]} O-O-O {[%clk 00:33:49]} {[%emt 00:08:19]} 15. Nb3 {[%clk
01:15:32]} {[%emt 00:06:03]} Nec6 {[%clk 00:32:49]} {[%emt 00:01:30]} 16. a3
{[%clk 01:06:06]} {[%emt 00:09:57]} Na6 {[%clk 00:32:39]} {[%emt 00:00:40]} 17.
Qe2 {[%clk 01:04:32]} {[%emt 00:02:03]} g5 {[%clk 00:32:44]} {[%emt 00:00:24]}
18. Bd2 {[%clk 01:04:43]} {[%emt 00:00:19]} Bd6 {[%clk 00:31:07]} {[%emt
00:02:08]} 19. Qe6+ {[%clk 01:03:38]} {[%emt 00:01:35]} Qxe6 {[%clk 00:31:32]}
{[%emt 00:00:05]} 20. Rxe6 {[%clk 01:04:04]} {[%emt 00:00:04]} Rhf8 {[%emt
00:02:16]} 1/2-1/2